Cogmind - Beta 17 @@@ ROGUE MODE // 2026.07.23 @ 14:53:51 Player: 3.14 Result: Destroyed by B-86 Titan with Matter Neutralizer Performance ------------- Evolutions (3) 1500 Regions Visited (8) 1600 Robots Destroyed (99) 495 Value Destroyed (3322) 3322 Prototype IDs (1) 20 Alien Tech Used (0) 0 Bonus (8087) 8087 TOTAL SCORE: 15024 Bonus ------- High Alert Combat Kills 12 Follower Combat Kills 175 Prayed to X0-1V1 5000 Major X0-1V1 Interference 2400 Entered Garrisons 200 Acquired ECA 300 Cogmind --------- Core Integrity 0/450 Matter 270/300 Energy 297/300 System Corruption 0% Temperature Cool (56) Movement Treading (245) Ox1 Location -7/Lower Caves Parts ------- > --- POWER (1) -------- (None) > --- PROPULSION (4) --- Improved Treads Armored Treads > --- UTILITY (6) ------ High-capacity Storage Unit > --- WEAPON (3) ------- Power Sword Power Sword > --- INVENTORY (20) --- Improved Deuterium Engine Light Treads Carbon-fiber Leg Encrypted Comm Array EM Shield Hacking Suite System Shield Axe Makeshift Spear Peak State ------------ > --- POWER ------------ Nuclear Core > --- PROPULSION ------- Light Treads Armored Treads Medium Treads Medium Treads > --- UTILITY ---------- High-capacity Storage Unit Melee Analysis Suite Improved Light Armor Plating Improved Medium Armor Plating Reactive Plating X0-1V1's Piety Tracker > --- WEAPON ----------- Power Sword Power Sword Power Sword > --- INVENTORY -------- Improved Deuterium Engine Light Treads Light Treads Light Treads Improved Treads Armored Treads Armored Treads Armored Treads Armored Treads Encrypted Comm Array Hardened Light Armor Plating EM Shield Hacking Suite System Shield System Restoration Module Axe Blade Saw Makeshift Spear [Rating: 62] Favorites ----------- Power Ion Engine Engine Ion Engine Power Core Nuclear Core Propulsion Armored Treads Treads Armored Treads Utility X0-1V1's Piety Tracker Device X0-1V1's Piety Tracker Storage Large Storage Unit Processor Transport Network Coupler Hackware Hacking Suite Protection Light Armor Plating Weapon Power Sword Impact Weapon Maul Slashing Weapon Power Sword Build | -11 -10 -9 -8 -8 -8 -7 -7 -7 ------- Run | Yrd Mat Mat Mat Gar Mat Fac Low Low Slots Evolved 6 | . . 2 2 . . 2 . . Power . | . . . . . . . . . Propulsion 2 | . . . 1 . . 1 . . Utility 2 | . . 1 1 . . . . . Weapon 2 | . . 1 . . . 1 . . Parts Attached 72 | 3 10 7 12 8 7 13 5 7 Power 9 | 1 1 1 . 2 2 1 1 . Engine 5 | 1 1 1 . . 1 1 . . Core 4 | . . . . 2 1 . 1 . Reactor . | . . . . . . . . . Propulsion 23 | 2 1 1 5 1 2 6 1 4 Treads 23 | 2 1 1 5 1 2 6 1 4 Leg . | . . . . . . . . . Wheel . | . . . . . . . . . Hover . | . . . . . . . . . Flight . | . . . . . . . . . Utility 30 | . 4 4 7 2 3 5 2 3 Device 9 | . 1 2 2 . 1 2 . 1 Storage 4 | . 2 1 . . . 1 . . Processor 2 | . 1 . . . . . 1 . Hackware 1 | . . . . 1 . . . . Protection 14 | . . 1 5 1 2 2 1 2 Artifact . | . . . . . . . . . Weapon 10 | . 4 1 . 3 . 1 1 . Energy Gun . | . . . . . . . . . Energy Cannon . | . . . . . . . . . Ballistic Gun . | . . . . . . . . . Ballistic Cannon . | . . . . . . . . . Launcher . | . . . . . . . . . Special Weapon . | . . . . . . . . . Impact Weapon 5 | . 4 1 . . . . . . Slashing Weapon 5 | . . . . 3 . 1 1 . Piercing Weapon . | . . . . . . . . . Special Melee Weapon . | . . . . . . . . . Unidentified Prototypes 1 | . . 1 . . . . . . Corrupted Parts 1 | . . 1 . . . . . . System Corruption 14 | . . 14 . . . . . . Parts Lost 34 | . 1 1 3 3 2 3 2 19 Power 4 | . . 1 1 . . 1 . 1 Propulsion 9 | . 1 . . 1 . . . 7 Utility 19 | . . . 2 2 2 2 2 9 Weapon 2 | . . . . . . . . 2 Highest Loss Streak 16 | . 1 1 1 2 2 2 2 16 To Critical Strikes 1 | . . . . . . . . 1 Average Backups 12 | 2 6 11 14 12 14 14 19 15 Power . | . . . . . . 1 1 1 Propulsion 5 | 1 3 4 4 4 5 6 8 6 Utility 4 | . 2 5 6 4 5 4 5 4 Weapon 2 | . 1 1 3 3 3 3 2 2 Tool/Special . | . . . . . . . . . Unused Backups 22 | . 2 2 4 3 1 . 2 8 Power 3 | . . . . . . . 2 1 Propulsion 9 | . 1 2 4 . . . . 2 Utility 2 | . . . . . . . . 2 Weapon 7 | . 1 . . 3 1 . . 2 Tool/Special 1 | . . . . . . . . 1 Average Slot Usage (%) 94 | . 92 91 94 94 98 96 98 93 Engine 5 | . 12 3 4 . 2 6 5 . Core 1 | . . . . 5 5 . 1 6 Treads 26 | . 27 22 27 25 25 27 28 26 Device 12 | . 8 11 13 11 14 17 11 9 Storage 9 | . 12 11 9 8 8 7 7 7 Processor 1 | . 4 2 . . . . 1 6 Protection 11 | . . 7 13 11 14 17 21 14 Impact Weapon 14 | . 24 33 27 14 . . . . Slashing Weapon 9 | . . . . 10 23 17 21 20 Peak Build Rating 62 | 3 11 26 38 53 53 61 61 62 Average Rating 36 | 2 7 24 33 42 49 53 60 54 On Entrance 32 | . 3 11 26 34 49 49 61 60 Avg Prop Armor Cover (%) 35 | 34 36 . . . . . . . Naked Turns . | . . . . . . . . . Heaviest Build 83 | 3 21 40 50 55 60 83 83 77 Greatest Support 96 | 3 40 40 60 60 60 96 96 96 Greatest Overweight (x) 1 | . 1 . . 1 . 1 . 1 Average Overweight (x) . | . . . . . . . . . Largest Inventory Capacity 20 | 5 10 15 15 15 15 20 20 20 Average Capacity 14 | 5 9 13 15 15 15 19 20 20 Most Carried 20 | 5 10 15 15 15 15 19 20 18 Average Carried 12 | 2 6 11 14 12 14 14 19 15 Final Capacity 20 | 5 10 15 15 15 15 20 20 20 Final Carried 19 | 5 9 13 13 13 15 19 18 9 Class Distribution -------------------- 80% | Mutant 9% | Commander-Mutant 5% | Gladiator 4% | Scavenger-Mutant Dominant Class ---------------- Mutant | -10/Materials Mutant | -9/Materials Mutant | -8/Materials Mutant | -8/Garrison Mutant | -8/Materials Mutant | -7/Factory Mutant | -7/Lower Caves Gladiator | -7/Lower Caves Resources | -11 -10 -9 -8 -8 -8 -7 -7 -7 ----------- Run | Yrd Mat Mat Mat Gar Mat Fac Low Low Matter Collected 2490 | 218 121 55 800 117 354 448 285 92 Remotely . | . . . . . . . . . Salvage Created 3775 | . 267 462 1239 439 447 605 170 146 Parts 114 | . 3 14 12 17 23 39 1 5 Haulers Intercepted 4 | . 1 . 2 . 1 . . . Recyclers Shooed 1 | . . . 1 . . . . . Parts Field Recycled . | . . . . . . . . . Retrieved Matter . | . . . . . . . . . Parts Self-Destructed 4 | . . . . . . . . 4 Prevented . | . . . . . . . . . Parts Restored . | . . . . . . . . . Kills | -11 -10 -9 -8 -8 -8 -7 -7 -7 ------- Run | Yrd Mat Mat Mat Gar Mat Fac Low Low Combat Hostiles Destroyed 77 | . 7 10 21 12 9 13 . 5 Melee 46 | . 2 3 5 9 9 13 . 5 Classes Destroyed 16 | . 5 5 3 2 . 1 . . Worker 5 | . . 2 3 . . . . . Builder 2 | . . 1 1 . . . . . Hauler 4 | . 1 . 2 . 1 . . . Recycler 4 | . . . 4 . . . . . Mechanic 2 | . . . 1 . 1 . . . Operator 2 | . . 1 . . . 1 . . Watcher 3 | . 2 . 1 . . . . . Swarmer 18 | . 3 1 5 . 3 2 . 4 Cutter 3 | . . . . 3 . . . . Grunt 26 | . 2 1 8 6 3 6 . . Brawler 3 | . . . 2 . 1 . . . Duelist 2 | . . 1 . 1 . . . . Sentry 17 | . . 7 6 1 1 2 . . Hunter 4 | . . . . 1 1 1 . 1 Programmer 2 | . . . . . . 2 . . Subdweller 2 | . 2 . . . . . . . Packrat 2 | . . . . . . . 2 . Best Kill Streak 4 | . 3 3 4 3 4 3 . 4 Combat Bots Only 4 | . 3 3 4 3 3 3 . 4 Max Kills in Single Turn 1 | . 1 1 1 1 1 1 1 1 Gunslinging . | . . . . . . . . . Exploded . | . . . . . . . . . Melee 1 | . 1 1 1 1 1 1 . 1 Uniques/NPCs Destroyed . | . . . . . . . . . Combat | -11 -10 -9 -8 -8 -8 -7 -7 -7 -------- Run | Yrd Mat Mat Mat Gar Mat Fac Low Low Hostile Shots Fired 668 | . 50 53 136 82 32 104 24 187 Missed 154 | . 12 14 31 21 5 26 6 39 Hits 514 | . 38 39 105 61 27 78 18 148 Melee 15 | . . . 5 7 3 . . . Projectile 499 | . 38 39 100 54 24 78 18 148 AOE 1 | . . . . 1 . . . . Critical Strikes 22 | . 2 . 5 5 1 2 . 7 Damage Taken 8030 | . 487 519 1292 918 330 974 422 3088 Core 946 | . 113 141 103 101 24 89 . 375 Absorbed by Shields . | . . . . . . . . . Ignored by Resistances 608 | . . . 93 14 . 150 55 296 Regen/Repaired (Parts) 230 | . 38 61 . . . 131 . . Core Remaining (%) 78 | 100 54 77 . . 81 . . . Volleys Fired . | . . . . . . . . . Largest . | . . . . . . . . . Hottest . | . . . . . . . . . Shots Fired . | . . . . . . . . . Gun . | . . . . . . . . . Cannon . | . . . . . . . . . Launcher . | . . . . . . . . . Special . | . . . . . . . . . Kinetic . | . . . . . . . . . Thermal . | . . . . . . . . . Explosive . | . . . . . . . . . Electromagnetic . | . . . . . . . . . Robot Hit Streak . | . . . . . . . . . Robot Miss Streak . | . . . . . . . . . Penetration Max . | . . . . . . . . . Secondary Targets . | . . . . . . . . . Shots Hit Robots 267 | . 19 35 84 28 21 26 7 47 Core Hits 62 | . 2 5 9 12 11 15 1 7 Critical Kills 3 | . 1 . 1 1 . . . . Critical Parts Destroyed 41 | . 6 8 22 5 . . . . Critical Strikes 58 | . 7 8 25 7 2 3 1 5 Smash 47 | . 7 8 25 7 . . . . Sever 11 | . . . . . 2 3 1 5 Melee Attacks 402 | . 29 45 118 50 36 50 12 62 Impact 225 | . 29 45 118 33 . . . . Slashing 177 | . . . . 17 36 50 12 62 Piercing . | . . . . . . . . . Sneak Attacks 32 | . 1 5 15 2 7 . 2 . Combat Hostiles 3 | . . 1 . . 2 . . . Follow-up Attacks 74 | . 6 7 26 7 6 5 2 15 Damage Inflicted 10619 | . 569 1306 3458 1007 1072 1104 300 1803 Guns . | . . . . . . . . . Cannons 80 | . . . . . . 80 . . Explosions . | . . . . . . . . . Melee 10536 | . 569 1306 3458 1004 1072 1024 300 1803 Ramming 3 | . . . . 3 . . . . Kinetic . | . . . . . . . . . Thermal 80 | . . . . . . 80 . . Explosive . | . . . . . . . . . Electromagnetic . | . . . . . . . . . Impact 6090 | . 569 1306 3458 757 . . . . Slashing 4446 | . . . . 247 1072 1024 300 1803 Piercing . | . . . . . . . . . Highest Corruption 14 | . . 14 . . 5 2 2 2 Average Corruption 2 | . . 14 . . 4 1 2 1 Corruption Purged 2 | . . . . . . . . 2 Corruption Blocked . | . . . . . . . . . Effects 22 | . . . . . 11 7 1 3 Message Errors 3 | . . . . . 1 2 . . Matter Fused 5 | . . . . . 2 2 1 . Heat Flow Errors 3 | . . . . . 1 1 . 1 Energy Discharges 4 | . . . . . 2 1 . 1 Parts Rejected 1 | . . . . . 1 . . . Data Loss (minor) 2 | . . . . . 2 . . . Data Loss (major) 1 | . . . . . 1 . . . Alerts 3 | . . . . . 1 1 . 1 Overload Shots . | . . . . . . . . . Overflow Damage 2406 | . 246 371 1345 201 52 40 80 71 Projectiles . | . . . . . . . . . Explosions . | . . . . . . . . . Melee 2406 | . 246 371 1345 201 52 40 80 71 Knockbacks 19 | . 4 2 10 3 . . . . Impact 18 | . 4 2 9 3 . . . . Kinetic . | . . . . . . . . . Secondary 1 | . . . 1 . . . . . Self-Inflicted Damage . | . . . . . . . . . Shots . | . . . . . . . . . Rammed 1 | . . . . 1 . . . . Targets Rammed 1 | . . . . 1 . . . . Kicked . | . . . . . . . . . Crushed . | . . . . . . . . . Highest Temperature 622 | . 14 11 96 13 148 161 3 622 Average Temperature 128 | . 12 5 33 7 80 75 2 219 Received Heat Transfer 2762 | . 201 150 441 336 45 261 84 1244 Effects 10 | . . . . . . . . 10 Shutdowns 2 | . . . . . . . . 2 Interference 1 | . . . . . . . . 1 Matter Decay 1 | . . . . . . . . 1 Short Circuit 1 | . . . . . . . . 1 Damage (minor) 2 | . . . . . . . . 2 Damage (major) 3 | . . . . . . . . 3 Siege Activations . | . . . . . . . . . Martial Activations . | . . . . . . . . . Shielding Activations . | . . . . . . . . . Robots Disrupted . | . . . . . . . . . Combat Hostiles . | . . . . . . . . . Robots Corrupted 40 | . 7 8 22 3 . . . . Combat Hostiles 30 | . 4 7 16 3 . . . . Parts Fried 56 | . 7 12 32 5 . . . . Impact Corruptions 96 | . 13 21 55 7 . . . . Robots Melted . | . . . . . . . . . Combat Hostiles . | . . . . . . . . . Parts Melted 2 | . . 2 . . . . . . Heat Transferred 50 | . . . . . . 50 . . Parts Sabotaged . | . . . . . . . . . Parts Stolen . | . . . . . . . . . Parts Stripped . | . . . . . . . . . Power Chain Reactions . | . . . . . . . . . Alert | -11 -10 -9 -8 -8 -8 -7 -7 -7 ------- Run | Yrd Mat Mat Mat Gar Mat Fac Low Low Maximum Alert Level 2 | . . 1 . 2 1 1 . . Low Security (%) 78 | 100 100 89 100 28 34 80 . . Level 1 19 | . . 10 . 55 65 19 . . Level 2 2 | . . . . 16 . . . . Level 3 . | . . . . . . . . . Level 4 . | . . . . . . . . . Level 5 . | . . . . . . . . . High Security . | . . . . . . . . . Max Security . | . . . . . . . . . Peak Influence 463 | . 60 288 190 463 257 279 . . Initial 225 | . . 5 3 120 225 35 . . Average 104 | . 11 99 44 278 207 106 . . Influence Increases 3245 | . 229 523 728 413 357 875 . 120 Destroy 0b10 Robot/C 1740 | . 100 200 420 320 220 380 . 100 Destroy 0b10 Robot/NC 125 | . 15 20 60 . 15 15 . . Destroy Leader 410 | . 26 80 116 20 64 84 . 20 Allied During Kill 93 | . . . . 21 27 45 . . Successful Hack 91 | . 27 9 22 6 . 27 . . Disable Machine 15 | . . . . 15 . . . . Anti-Garrison Action 300 | . . . . . . 300 . . Destroy Structure 33 | . 1 1 5 16 1 9 . . Partial Spotted 15 | . . 15 . . . . . . Lose Combat Pursuer 315 | . 60 90 105 15 30 15 . . Miscellaneous 108 | . . 108 . . . . . . Influence Decreases 3245 | . 216 526 552 136 742 707 232 134 Entered New Map 458 | . . 8 7 66 238 43 92 4 Time Decay 1760 | . 206 258 368 . 294 404 120 110 Search Patrol Dispatched 100 | . . 100 . . . . . . Lost Part 162 | . 10 10 22 30 20 30 20 20 Lost Ally 220 | . . . 20 40 40 120 . . Purge Threat 545 | . . 150 135 . 150 110 . . Squads Dispatched 10 | . . . 2 . . 8 . . Investigation 1 | . . . 1 . . . . . Extermination 2 | . . . . . . 2 . . Reinforcement 3 | . . . 1 . . 2 . . Assault 4 | . . . . . . 4 . . Garrison . | . . . . . . . . . Intercept . | . . . . . . . . . Searches Triggered 1 | . . 1 . . . . . . Construction Impeded . | . . . . . . . . . Haulers Reinforced . | . . . . . . . . . Active Scanning Responses . | . . . . . . . . . Cargo Convoy Interrupts 1 | . . . . . . 1 . . Stealth | -11 -10 -9 -8 -8 -8 -7 -7 -7 --------- Run | Yrd Mat Mat Mat Gar Mat Fac Low Low Distress Signals 13 | . 1 2 5 . 2 3 . . Communications Jammed . | . . . . . . . . . Distress Signals . | . . . . . . . . . Times Spotted 140 | . 21 15 40 16 16 24 1 7 Peak Tracking Total 7 | . 6 6 7 5 4 4 1 5 Tactical Retreats 11 | . 1 2 4 1 2 1 . . Traps | -11 -10 -9 -8 -8 -8 -7 -7 -7 ------- Run | Yrd Mat Mat Mat Gar Mat Fac Low Low Traps Triggered 3 | . 1 . . 1 . 1 . . Indirectly . | . . . . . . . . . Trap Hack Attempts . | . . . . . . . . . Triggered . | . . . . . . . . . Disarmed . | . . . . . . . . . Reprogrammed . | . . . . . . . . . Reused . | . . . . . . . . . Traps Extracted . | . . . . . . . . . Installed . | . . . . . . . . . Triggered . | . . . . . . . . . Machines | -11 -10 -9 -8 -8 -8 -7 -7 -7 ---------- Run | Yrd Mat Mat Mat Gar Mat Fac Low Low Machines Disabled 4 | . . . . 2 . 2 . . Max in Single Turn 1 | . . . . 1 . 1 . . Garrison Access 2 | . . . . . . 2 . . Machines Repaired . | . . . . . . . . . Machines Dismantled . | . . . . . . . . . Machines Sabotaged . | . . . . . . . . . Overloaded Fab Kills . | . . . . . . . . . Hacking | -11 -10 -9 -8 -8 -8 -7 -7 -7 --------- Run | Yrd Mat Mat Mat Gar Mat Fac Low Low Machines Accessed 24 | . 4 4 7 1 1 7 . . Terminals 18 | . 3 3 4 1 1 6 . . Fabricators . | . . . . . . . . . Repair Stations 4 | . 1 1 1 . . 1 . . Recycling Units . | . . . . . . . . . Scanalyzers 1 | . . . 1 . . . . . Garrison Access 1 | . . . 1 . . . . . Total Hacks 63 | . 16 11 20 1 2 13 . . Successful 41 | . 9 10 11 1 1 9 . . Failed 21 | . 6 1 9 . 1 4 . . Catastrophic 3 | . . . 3 . . . . . Database Lockouts 1 | . 1 . . . . . . . Manual 39 | . 14 4 10 . 2 9 . . Terminals 43 | . 12 5 12 1 2 11 . . Fabricators . | . . . . . . . . . Repair Stations 14 | . 4 6 2 . . 2 . . Recycling Units . | . . . . . . . . . Scanalyzers 4 | . . . 4 . . . . . Garrison Access 2 | . . . 2 . . . . . Terminal Hacks 12 | . 2 2 4 1 1 2 . . Record 1 | . . . 1 . . . . . Robot Analysis 2 | . 1 1 . . . . . . Open Door 1 | . . . . 1 . . . . Branch Access Points 2 | . . . 1 . . 1 . . Terminal Index 1 | . 1 . . . . . . . Unreport Threat 5 | . . 1 2 . 1 1 . . Fabricator Hacks . | . . . . . . . . . Repair Station Hacks 12 | . 3 6 1 . . 2 . . Scan Component 7 | . 2 3 1 . . 1 . . Repair 5 | . 1 3 . . . 1 . . Recycling Unit Hacks . | . . . . . . . . . Scanalyzer 4 | . . . 4 . . . . . Insert Component 2 | . . . 2 . . . . . Analyze 2 | . . . 2 . . . . . Garrison Access Hacks 1 | . . . 1 . . . . . Unlock Access 1 | . . . 1 . . . . . Unauthorized Hacks 12 | . 4 2 1 . . 5 . . Terminals 12 | . 4 2 1 . . 5 . . Track 1 | . 1 . . . . . . . Botnet 1 | . 1 . . . . . . . Operators 2 | . 2 . . . . . . . Skim 8 | . . 2 1 . . 5 . . Fabricators . | . . . . . . . . . Repair Stations . | . . . . . . . . . Recycling Units . | . . . . . . . . . Scanalyzers . | . . . . . . . . . Garrison Access . | . . . . . . . . . Data Cores Recovered . | . . . . . . . . . Used . | . . . . . . . . . Hacking Detections 19 | . 4 3 6 . 1 5 . . Full Trace Events 2 | . . . 2 . . . . . Feedback Events . | . . . . . . . . . Feedback Blocked . | . . . . . . . . . Robot Schematics Acquired . | . . . . . . . . . Robots Built . | . . . . . . . . . Authchips . | . . . . . . . . . Time . | . . . . . . . . . Total Robot Build Rating . | . . . . . . . . . Part Schematics Acquired 2 | . . . 2 . . . . . Parts Built . | . . . . . . . . . Authchips . | . . . . . . . . . Time . | . . . . . . . . . Total Part Build Rating . | . . . . . . . . . Part Studies Acquired . | . . . . . . . . . Parts Repaired 5 | . 1 3 . . . 1 . . Time 153 | . 26 108 . . . 19 . . Parts Recycled . | . . . . . . . . . Recycled Matter . | . . . . . . . . . Retrieved Matter . | . . . . . . . . . Retrieved Components . | . . . . . . . . . Parts Scanalyzed 2 | . . . 2 . . . . . Part Schematics Acquired 2 | . . . 2 . . . . . Parts Damaged 1 | . . . 1 . . . . . Bothacking | -11 -10 -9 -8 -8 -8 -7 -7 -7 ------------ Run | Yrd Mat Mat Mat Gar Mat Fac Low Low Used RIF Installer . | . . . . . . . . . Robots Hacked . | . . . . . . . . . Non-combat . | . . . . . . . . . Combat . | . . . . . . . . . Robot Hacks Applied . | . . . . . . . . . Relay Couplers Released 4 | . . . . . . 4 . . Machine Destruction 4 | . . . . . . 4 . . Fabnet Peak Effective % . | . . . . . . . . . Robots Rewired 3 | . . . . 3 . . . . Allies Hacked . | . . . . . . . . . Hacks Repelled . | . . . . . . . . . Allies | -11 -10 -9 -8 -8 -8 -7 -7 -7 -------- Run | Yrd Mat Mat Mat Gar Mat Fac Low Low Total Allies 14 | . . . 1 3 6 4 . . Largest Group 8 | . . . 1 3 5 8 . . Highest-Rated Group 129 | . . . 16 82 105 129 . . Highest-Rated Ally 57 | . . . 16 31 57 21 . . Initial Warlord ECA Mod 2 | . . . . . 2 1 1 1 Total Orders . | . . . . . . . . . Ally Attacks 124 | . . . 2 13 46 63 . . Total Damage 2047 | . . . 32 277 667 1071 . . Kills 15 | . . . . 4 3 8 . . Allies Corrupted . | . . . . . . . . . Allies Melted . | . . . . . . . . . X0-1V1 Amusement Gains 144 | . 24 5 10 . 10 15 . 80 Good Acts 38 | . . 6 13 7 3 5 3 1 Bad Acts 21 | . 1 1 4 1 3 5 1 5 Intel | -11 -10 -9 -8 -8 -8 -7 -7 -7 ------- Run | Yrd Mat Mat Mat Gar Mat Fac Low Low Active Infowar (turns) 4107 | . 1137 175 563 275 577 1222 158 . Traps 632 | . . . . . . 632 . . Seismic 3571 | . 717 59 563 275 577 1222 158 . T.N.C. 536 | . 420 116 . . . . . . Robot Analysis Total 2 | . 1 1 . . . . . . Derelict Logs Recovered . | . . . . . . . . . Drone Launches . | . . . . . . . . . Drone Recoveries . | . . . . . . . . . Exploration | -11 -10 -9 -8 -8 -8 -7 -7 -7 ------------- Run | Yrd Mat Mat Mat Gar Mat Fac Low Low Turns Passed 6321 | 36 1181 589 1315 713 649 1222 248 368 Spaces Moved 2803 | 50 692 198 422 289 276 615 129 132 Core 197 | 50 147 . . . . . . . Treads 2606 | . 545 198 422 289 276 615 129 132 Legs . | . . . . . . . . . Wheels . | . . . . . . . . . Hover . | . . . . . . . . . Flight . | . . . . . . . . . Fastest Speed 50 | 50 50 160 160 166 170 162 162 162 Average Speed 156 | 50 136 160 166 167 170 165 162 164 Slowest Speed 250 | 50 240 160 170 250 170 245 162 245 Overloaded Moves . | . . . . . . . . . Propulsion Burnouts . | . . . . . . . . . Robots Hopped . | . . . . . . . . . Potential Cave-ins . | . . . . . . . . . Cave-ins Triggered . | . . . . . . . . . Exploration Rate (%) 34 | 4 94 24 36 42 34 26 22 25 Regions Visited 8 Branch Regions 2 Pre-discovered Areas 1 | . . . . . . . 1 . Known Exits Taken 3 | . . . 1 . 1 1 . . Unknown Exits Taken 4 | 1 1 1 . . . . 1 . Scrap Searched 3 | . . . . . . . 3 . Spaces Dug 22 | . 1 1 5 1 . 8 3 3 Terrain Destroyed 22 | . 1 1 5 1 . 8 3 3 Melee 22 | . 1 1 5 1 . 8 3 3 Projectile . | . . . . . . . . . AOE . | . . . . . . . . . Terrain Rammed . | . . . . . . . . . Walls Destroyed . | . . . . . . . . . Machines Disabled . | . . . . . . . . . Actions | -11 -10 -9 -8 -8 -8 -7 -7 -7 --------- Run | Yrd Mat Mat Mat Gar Mat Fac Low Low Total 4164 | 59 886 402 853 438 415 750 154 207 Wait 809 | . 147 143 304 58 87 56 . 14 Move 2796 | 49 691 197 422 288 275 614 128 132 Hop . | . . . . . . . . . Pick Up 75 | 7 8 16 11 6 8 13 5 1 Fast Attach 21 | 1 5 . 2 6 2 1 2 2 Attach 43 | 2 3 4 6 4 3 10 1 10 Detach 2 | . 1 . . . . 1 . . Swap 43 | . 3 3 12 4 7 10 2 2 Drop 46 | . 6 6 12 6 6 3 7 . Fire . | . . . . . . . . . Melee 302 | . 22 33 84 39 27 42 9 46 Ram . | . . . . . . . . . Kick . | . . . . . . . . . Crush 1 | . . . . 1 . . . . Escape Stasis . | . . . . . . . . . Rewire 26 | . . . . 26 . . . . Trap . | . . . . . . . . . Miscellaneous . | . . . . . . . . . Route ------- -11/Scrapyard -10/Materials (discovered 5 exits: *Mat x3 / [*Min] / [*Sub]) -9/Materials -8/Materials (discovered 4 exits: Fac / *Sto x2 / Gar) -8/Garrison (discovered 2 exits: *Mat x2) -8/Materials (discovered 2 exits: *Fac / *Sto) -7/Factory (discovered 2 exits: *Low x2) -7/Lower Caves -7/Lower Caves History --------- Turn | Location | Event 3 | -11/Scrapyard | Discovered new exit (range 15) 37 | -11/Scrapyard | Entered Materials 63 | -10/Materials | Discovered new exit (range 8) 197 | -10/Materials | Discovered new exit (range 6) 304 | -10/Materials | Build established: Mutant 305 | -10/Materials | Central database locked down 420 | -10/Materials | Repaired Lgt. Treads 436 | -10/Materials | Discovered new exit (range 4) 626 | -10/Materials | Discovered new exit (range 11) 637 | -10/Materials | Derelicts attacked the area 837 | -10/Materials | Discovered new exit (range 7) 847 | -10/Materials | Prayed at D.C.S.S. Altar Unit 1034 | -10/Materials | X0-1V1 sent you into danger 1218 | -10/Materials | Entered another Materials area 1218 | -9/Materials | Evolved 2 slots: Utility x1, Weapon x1 1302 | -9/Materials | Energy capacity permanently improved by X0-1V1 (+200; -100 max core) 1332 | -9/Materials | X0-1V1 foreshadows a heat wave 1407 | -9/Materials | X0-1V1 added 0b10 threat records associated with you (minor) 1496 | -9/Materials | Ambient heat levels rising (+10) 1607 | -9/Materials | Discovered new exit (range 15) 1618 | -9/Materials | Search patrols dispatched 1639 | -9/Materials | Ambient heat levels rising (+10) 1714 | -9/Materials | Repaired Corrupted Lgt. Treads 1751 | -9/Materials | Repaired Corrupted Lgt. Treads 1788 | -9/Materials | Repaired Corrupted Lgt. Treads 1801 | -9/Materials | System corruption reached 10% 1806 | -9/Materials | Ambient heat levels falling (-10) 1807 | -9/Materials | Entered another Materials area 1807 | -8/Materials | Evolved 2 slots: Propulsion x1, Utility x1 1838 | -8/Materials | Identified exit to Storage 1935 | -8/Materials | Identified exit to Factory 1935 | -8/Materials | X0-1V1 revealed exit location to -7/Factory 2047 | -8/Materials | X0-1V1 activates XOMVISION 2472 | -8/Materials | X0-1V1 turns hostiles against one another 2997 | -8/Materials | EM resistance permanently improved by X0-1V1 (+15%; -150 max core) 3122 | -8/Materials | Identified exit to Garrison 3122 | -8/Materials | Entered Garrison 3237 | -8/Garrison | X0-1V1 downgraded hostiles (x1) 3288 | -8/Garrison | Utility slot count permanently improved by X0-1V1 (+1) 3378 | -8/Garrison | Core integrity restored by X0-1V1 (+69) 3509 | -8/Garrison | Identified exit to Materials 3509 | -8/Garrison | X0-1V1 revealed exit location to -8/Materials 3574 | -8/Garrison | X0-1V1 activates XOMVISION 3612 | -8/Garrison | Triggered checkpoint 3615 | -8/Garrison | Triggered checkpoint 3736 | -8/Garrison | Triggered checkpoint 3784 | -8/Garrison | Discovered exit to Materials (range 3) 3835 | -8/Garrison | Entered Materials 4064 | -8/Materials | X0-1V1 sent allied Chaos Knight (x1) 4273 | -8/Materials | X0-1V1 sent you to a vault 4347 | -8/Materials | Discovered exit to Storage (range 5) 4395 | -8/Materials | X0-1V1 mutated your Weapon slot to Utility slot 4434 | -8/Materials | Sensors blinded by X0-1V1 4452 | -8/Materials | Discovered exit to Factory (range 5) 4484 | -8/Materials | Entered Factory 4484 | -7/Factory | Accompanied by 4 allies 4484 | -7/Factory | Evolved 2 slots: Propulsion x1, Weapon x1 4530 | -7/Factory | Identified exit to Lower Caves 4583 | -7/Factory | Build established: Commander-Mutant 4710 | -7/Factory | X0-1V1 sent you to a vault 5194 | -7/Factory | Build established: Mutant 5256 | -7/Factory | X0-1V1 enhanced Transport squad support 5319 | -7/Factory | Cargo convoy interrupted 5466 | -7/Factory | Repaired Reactive Plating? 5706 | -7/Factory | Entered Lower Caves 5712 | -7/Lower Caves | Met a Warlord Commander 5713 | -7/Lower Caves | Learned location of Warlord (-4) 5714 | -7/Lower Caves | Warlord Commander delivered Encrypted Comm Array 5723 | -7/Lower Caves | Found Encrypted Comm Array 5860 | -7/Lower Caves | Spotted B-75 Beast 5886 | -7/Lower Caves | X0-1V1 whisked you away to safety 5887 | -7/Lower Caves | Encountered a Warlord checkpoint 5891 | -7/Lower Caves | Found DCF Scrap (15 items) 5939 | -7/Lower Caves | Discovered new exit (range 9) 5954 | -7/Lower Caves | Entered another Lower Caves area 6183 | -7/Lower Caves | Spotted B-75 Beast 6203 | -7/Lower Caves | Build established: Gladiator 6264 | -7/Lower Caves | X0-1V1 upgraded hostiles (x1) 6267 | -7/Lower Caves | Spotted B-86 Titan 6274 | -7/Lower Caves | Core integrity fell below 50% 6287 | -7/Lower Caves | Core integrity fell below 20% 6322 | -7/Lower Caves | Destroyed by B-86 Titan with Matter Neutralizer Last Messages --------------- 06302_ Arm. Treads blasted off. 06303_ X0-1V1: "Your inner air conditioner seems to have fallen into disrepair." (-23 heat dissipation) 06306_ Critical hit (Meltdown: +350). 06306_ Lyr. Medium Armor Plating destroyed. 06309_ Power Sword follow-up attack on B-86 Titan. 06309_ Penetrated by Slug. 06309_ Slug penetrates Wall. 06311_ Heat dissipation returns to normal. 06312_ Power failure, Nuclear Core shutdown. 06312_ Broken System Restoration Module destroyed. 06312_ Arm. Treads destroyed. 06312_ Penetrated by Slug. 06312_ Power Sword destroyed. 06313_ X0-1V1: "I know that drunk sailor look when I see it." 06315_ Nuclear Core destroyed. 06319_ Destroyed Hvy. Reflective Plating. X0-1V1's Piety Tracker suddenly appears amidst shimmering waves of color. 06322_ B-86 Titan activates siege mode. 06322_ X0-1V1 cackles wildly! Map ----- +----------------------------------------------------+ | | | | | | | | | | | ?????????????????????????????????????????????????? | | ?????????????????????????????????????????????????? | | ?????????????????????????????????????????????????? | | ?????????????????????????????????????????????????? | | ?????????????????????????????????????????????????? | | ?????????????????????????????????????????????????? | | ?????????????????????????????????????????????????? | | ?????????????????????????????????????????????????? | | ?????????????????????????????????????????????????? | | ?????????????????????????????????????????????????? | | ?????????????????????????????????????????????????? | | ?????????????????????????????????????????????????? | | ????????????????#????????????????????????????????? | | ????????????????# ??????###??????????????????????? | | ?????????????????#!#?####;##?????###?????????????? | | ??????????????????# ## # ##???## ######### #?? | | ???????????????????#; #???# #?? | | ???????????????????# #???## % #??? | | ?????????########### % #????## ## ##??? | | ?????????# %%%##????## #?# #???? | | ?????????# %=@;##??## #??# ? | | ?????????# ###;; ;* BB #??# #???# | | ??????????????### ####;BB #??## #???? | | ????????????????# ????### #?## #??? # $ | | ???????????????# ???????# ### #### #? ? | | ??????????????# ?????##% ## # ?? | | ?????????????# #### ?? | | ????????????# # ### ?? | | ????????????## # ##?? ?? | | ?????????????## #### ### ###? ##??? | | ??????????????# #####????#### ?# ##? ###???? | | ??????????????# ????????????# ### ##? ##?????? | | ??????????????# ###????##???# ## #??#??????? | | ?????????????? #??## #### #?????????? | | ?????????????? ### ## #????????# | | ?????????????????# ##???????# | | ?????????????????# #???????? | | ?????????????????# #???????? | | ????????????????## ## #???????? | | ???????????????## #### ####????? | | ???????????????# ##?## ###??? | | ???????????????# #### #???# | | ??????????????# #??## | | ??????????????### ### #### | | ????????????????## #### ## | +----------------------------------------------------+ Best States ------------- Heat Dissipation 34 Energy Generation 18 Energy Capacity 475 Matter Stores 1000 Matter Capacity 1000 Sight Range 22 Terrain Scan Density 10 Armor Coverage 675 Resistance: KI 20 Resistance: TH 18 Resistance: EM 40 Evasion (%) 50 Melee Accuracy 5 Recoil Reduction 4 Offensive Hacking 10 Item Schematics ----------------- Imp. Light Armor Plating | -8/Materials | Scanalyzed Arm. Treads | -8/Materials | Scanalyzed Robot Schematics ------------------ None Fabricated ------------ Nothing Repaired ---------- Lgt. Treads | 72% | -10/Materials Lgt. Treads | 75% | -9/Materials | Corrupted Lgt. Treads | 87% | -9/Materials | Corrupted Lgt. Treads | 94% | -9/Materials | Corrupted Reactive Plating | 27% | -7/Factory Studied --------- None Alien Tech Used ----------------- None Achievements -------------- None Challenges ------------ None Game ------ Seed OmegaFocalNanosword Manual? 0 Play Time 00:41:52 Cumulative 987.1 hours Start 2026.07.23 @ 14:14:10 End 2026.07.23 @ 14:53:51 Sessions 1 Manual Loads 0 Difficulty Rogue Special Mode None Game No. 1683 Rogue 1683 Adventurer 0 Explorer 0 Win Type - Total 96 Types 57/1/16/16/4/0/0/1/0/1 Lore% 93 Gallery% 80 Achievement% 69 Wizard Run 0 Options --------- Layout 0 ASCII 1 Keyboard 0 Movement Numpad Keybinds 1 Fullscreen 2 Font 18/SmallcapsGlow Map View 76x50 Zoom Use 0% Tactical HUD 1 Map Filters NONE Filters NONE Steam 1 RUN: ed1fa3ec-fa5a-411b-be0e-04e6e81534a2